[Event "Polgar Challenge 2021"]
[Site "Online"]
[Date "2021.04.04"]
[Round "4.6"]
[White "Murzin, Volodar"]
[Black "Liang, Awonder"]
[Result "1-0"]
[ECO "B10"]
[WhiteElo "2478"]
[BlackElo "2592"]
[Annotator "ChessBase"]
[PlyCount "169"]
[EventDate "2021.04.08"]
[EventType "tourn"]
[EventCountry "NET"]
[SourceTitle "playchess.com"]
[Source "ChessBase"]
[SourceQuality "1"]
[TimeControl "600+5"]

1. e4 {[%emt 0:00:00]} c6 {[%emt 0:00:00]} 2. Nf3 {[%emt 0:00:00]} d5 {[%emt 0:00:00]} 3. exd5 {[%emt 0:00:01]} cxd5 {[%emt 0:00:00]} 4. Ne5 {[%emt 0:00:01]} Nf6 {[%emt 0:00:03]} 5. d4 {[%emt 0:00:08]} Nc6 {[%emt 0:00:12]} 6. Bb5 {[%emt 0:00:18]} Bd7 {[%emt 0:00:01]} 7. Nxd7 {[%emt 0:00:06]} Qxd7 {[%emt 0:00:06]} 8. c3 {[%emt 0:00:01]} e6 {[%emt 0:00:13]} 9. O-O {[%emt 0:00:07]} Bd6 {[%emt 0:00:02]} 10. Nd2 {[%emt 0:00:03]} O-O {[%emt 0:00:05]} 11. Nf3 {[%emt 0:02:05]} Qc7 {[%emt 0:00:05]} 12. g3 {[%emt 0:00:24]} Ne4 {[%emt 0:00:16]} 13. Bd3 {[%emt 0:00:21]} Rae8 {[%emt 0:00:10]} 14. Ng5 {[%emt 0:00:33]} f5 {[%emt 0:00:04]} 15. Kg2 {[%emt 0:01:06]} h6 {[%emt 0:02:12]} 16. Nh3 {[%emt 0:00:14]} g5 {[%emt 0:00:02]} 17. f3 {[%emt 0:00:05]} Nf6 {[%emt 0:00:01]} 18. Bd2 {[%emt 0:01:37]} Qg7 {[%emt 0:00:05]} 19. Kh1 {[%emt 0:00:43]} Kh8 {[%emt 0:00:04]} 20. Qe2 {[%emt 0:00:17]} Rg8 {[%emt 0:02:35]} 21. Rae1 {[%emt 0:00:16]} Qf7 {[%emt 0:00:03]} 22. Qg2 {[%emt 0:00:21]} g4 {[%emt 0:00:25]} 23. fxg4 {[%emt 0:00:26]} Rxg4 {[%emt 0:00:01]} 24. Nf4 {[%emt 0:00:13]} Ne4 {[%emt 0:00:10]} 25. Bxe4 {[%emt 0:00:44]} dxe4 {[%emt 0:00:04]} 26. Qh3 {[%emt 0:00:01]} Bxf4 {[%emt 0:01:07]} 27. Rxf4 {[%emt 0:00:10]} h5 {[%emt 0:00:45]} 28. Rxg4 {[%emt 0:01:10]} fxg4 {[%emt 0:00:03]} 29. Qg2 {[%emt 0:00:02]} e5 {[%emt 0:00:16]} 30. Qxe4 {[%emt 0:00:12]} Rd8 {[%emt 0:00:42]} 31. Bg5 {[%emt 0:00:05]} Rg8 {[%emt 0:00:07]} 32. Be3 {[%emt 0:00:27]} exd4 {[%emt 0:01:35]} 33. Bxd4+ {[%emt 0:00:07]} Nxd4 {[%emt 0:00:01]} 34. Qxd4+ {[%emt 0:00:00]} Rg7 {[%emt 0:00:05]} 35. Kg1 {[%emt 0:00:12]} b6 {[%emt 0:00:12]} 36. a4 {[%emt 0:00:15]} Kh7 {[%emt 0:00:05]} 37. Re5 {[%emt 0:00:01]} Qg6 {[%emt 0:00:13]} 38. Qd2 {[%emt 0:00:11]} Qb1+ {[%emt 0:00:03]} 39. Re1 {[%emt 0:00:02]} Qf5 {[%emt 0:00:02]} 40. Qf2 {[%emt 0:00:03]} Qg6 {[%emt 0:00:06]} 41. Qd4 {[%emt 0:00:01]} Rf7 {[%emt 0:00:03]} 42. Qe4 {[%emt 0:00:01]} Kg7 {[%emt 0:00:07]} 43. Qxg6+ {[%emt 0:00:09]} Kxg6 {[%emt 0:00:00]} 44. Re4 {[%emt 0:00:05]} Rd7 {[%emt 0:00:06]} 45. Kf2 {[%emt 0:00:01]} Rd1 {[%emt 0:00:04]} 46. Re1 {[%emt 0:00:08]} Rd2+ {[%emt 0:00:02]} 47. Re2 {[%emt 0:00:00]} Rd1 {[%emt 0:00:01]} 48. Ke3 {[%emt 0:00:16]} Kf5 {[%emt 0:00:11]} 49. Rd2 {[%emt 0:00:09]} Ra1 {[%emt 0:00:22]} 50. b3 {[%emt 0:00:02]} Ra3 {[%emt 0:00:05]} 51. Rb2 {[%emt 0:00:03]} Ke5 {[%emt 0:00:01]} 52. Kd3 {[%emt 0:00:02]} Kd5 {[%emt 0:00:06]} 53. c4+ {[%emt 0:00:09]} Kc5 {[%emt 0:00:05]} 54. Kc3 {[%emt 0:00:01]} Ra1 {[%emt 0:00:16]} 55. Rd2 {[%emt 0:00:02]} Kc6 {[%emt 0:00:18]} 56. Rd5 {[%emt 0:00:03]} h4 {[%emt 0:00:02]} 57. gxh4 {[%emt 0:00:07]} Rc1+ {[%emt 0:00:16]} 58. Kb4 {[%emt 0:00:11]} Rc2 {[%emt 0:00:04]} 59. Rg5 {[%emt 0:00:02]} a5+ {[%emt 0:00:04]} 60. Ka3 {[%emt 0:00:03]} Rg2 {[%emt 0:00:02]} 61. b4 {[%emt 0:00:12]} Rxh2 {[%emt 0:00:20]} 62. Rg6+ {[%emt 0:00:08]} Kc7 {[%emt 0:00:03]} 63. bxa5 {[%emt 0:00:01]} bxa5 {[%emt 0:00:06]} 64. Rxg4 {[%emt 0:00:02]} Rh3+ {[%emt 0:00:00]} 65. Kb2 {[%emt 0:00:02]} Kc6 {[%emt 0:00:01]} 66. Kc2 {[%emt 0:00:06]} Kc5 {[%emt 0:00:01]} 67. Kd2 {[%emt 0:00:01]} Kb4 {[%emt 0:00:03]} 68. c5+ {[%emt 0:00:07]} Kxc5 {[%emt 0:00:01]} 69. Ke2 {[%emt 0:00:02]} Rb3 {[%emt 0:00:25]} 70. Kf2 {[%emt 0:00:02]} Kd6 {[%emt 0:00:02]} 71. h5 {[%emt 0:00:11]} Rh3 {[%emt 0:00:11]} 72. Rg5 {[%emt 0:00:02]} Rh4 {[%emt 0:00:05]} 73. Rxa5 {[%emt 0:00:02]} Ke6 {[%emt 0:00:01]} 74. Kg3 {[%emt 0:00:01]} Rb4 {[%emt 0:00:01]} 75. h6 {[%emt 0:00:13]} Kf7 {[%emt 0:00:04]} 76. Rh5 {[%emt 0:00:11]} Kg8 {[%emt 0:00:04]} 77. a5 {[%emt 0:00:03]} Kh7 {[%emt 0:00:05]} 78. Kf3 {[%emt 0:00:01]} Ra4 {[%emt 0:00:09]} 79. Ke3 {[%emt 0:00:01]} Rb4 {[%emt 0:00:05]} 80. Kd3 {[%emt 0:00:01]} Ra4 {[%emt 0:00:09]} 81. Kc3 {[%emt 0:00:02]} Rg4 {[%emt 0:00:01]} 82. Kb3 {[%emt 0:00:02]} Rg1 {[%emt 0:00:07]} 83. Kb4 {[%emt 0:00:04]} Rb1+ {[%emt 0:00:01]} 84. Kc5 {[%emt 0:00:01]} Rc1+ {[%emt 0:00:03]} 85. Kb6 {[%emt 0:00:02]} 1-0

[Event "Polgar Challenge 2021"]
[Site "Online"]
[Date "2021.04.04"]
[Round "4.7"]
[White "Mammadzada, Gunay"]
[Black "Saduakassova, Dinara"]
[Result "1/2-1/2"]
[ECO "C83"]
[WhiteElo "2443"]
[BlackElo "2500"]
[Annotator "ChessBase"]
[PlyCount "76"]
[EventDate "2021.04.08"]
[EventType "tourn"]
[EventCountry "NET"]
[SourceTitle "playchess.com"]
[Source "ChessBase"]
[SourceQuality "1"]
[TimeControl "600+5"]

1. e4 {[%emt 0:00:00]} e5 {[%emt 0:00:00]} 2. Nf3 {[%emt 0:00:00]} Nc6 {[%emt 0:00:00]} 3. Bb5 {[%emt 0:00:00]} a6 {[%emt 0:00:00]} 4. Ba4 {[%emt 0:00:02]} Nf6 {[%emt 0:00:00]} 5. O-O {[%emt 0:00:02]} Nxe4 {[%emt 0:00:00]} 6. d4 {[%emt 0:00:02]} b5 {[%emt 0:00:01]} 7. Bb3 {[%emt 0:00:01]} d5 {[%emt 0:00:01]} 8. dxe5 {[%emt 0:00:01]} Be6 {[%emt 0:00:01]} 9. c3 {[%emt 0:00:05]} Be7 {[%emt 0:00:06]} 10. Nbd2 {[%emt 0:00:04]} Nc5 {[%emt 0:00:01]} 11. Bc2 {[%emt 0:00:15]} d4 {[%emt 0:00:02]} 12. Nb3 {[%emt 0:00:02]} d3 {[%emt 0:00:01]} 13. Bb1 {[%emt 0:00:01]} Nxb3 {[%emt 0:00:02]} 14. axb3 {[%emt 0:00:00]} Bf5 {[%emt 0:00:01]} 15. h3 {[%emt 0:00:02]} O-O {[%emt 0:00:02]} 16. b4 {[%emt 0:00:08]} Qd7 {[%emt 0:00:05]} 17. Re1 {[%emt 0:00:02]} Rfd8 {[%emt 0:00:10]} 18. Bf4 {[%emt 0:00:34]} a5 {[%emt 0:00:31]} 19. bxa5 {[%emt 0:01:23]} Rxa5 {[%emt 0:00:03]} 20. Rxa5 {[%emt 0:00:26]} Nxa5 {[%emt 0:00:01]} 21. e6 {[%emt 0:02:30]} fxe6 {[%emt 0:00:52]} 22. g4 {[%emt 0:00:25]} Bg6 {[%emt 0:00:35]} 23. Ne5 {[%emt 0:00:02]} Qd5 {[%emt 0:00:33]} 24. Nxg6 {[%emt 0:00:23]} hxg6 {[%emt 0:00:01]} 25. Bxc7 {[%emt 0:00:02]} d2 {[%emt 0:00:05]} 26. Rf1 {[%emt 0:01:04]} Nc4 {[%emt 0:00:05]} 27. Bxd8 {[%emt 0:00:32]} Nxb2 {[%emt 0:00:03]} 28. Qc2 {[%emt 0:00:08]} Qxd8 {[%emt 0:00:18]} 29. Qxg6 {[%emt 0:02:51]} d1=Q {[%emt 0:00:03]} 30. Qxe6+ {[%emt 0:00:02]} Kf8 {[%emt 0:01:13]} 31. Qf5+ {[%emt 0:00:02]} Bf6 {[%emt 0:00:23]} 32. Rxd1 {[%emt 0:00:06]} Qxd1+ {[%emt 0:00:05]} 33. Kg2 {[%emt 0:00:00]} Qd2 {[%emt 0:00:59]} 34. Qc5+ {[%emt 0:00:31]} Be7 {[%emt 0:00:36]} 35. Qc8+ {[%emt 0:00:20]} Bd8 {[%emt 0:00:08]} 36. Qf5+ {[%emt 0:00:04]} Bf6 {[%emt 0:00:03]} 37. Qc8+ {[%emt 0:00:41]} Bd8 {[%emt 0:00:05]} 38. Qf5+ {[%emt 0:00:06]} Bf6 {[%emt 0:00:01]} 1/2-1/2

[Event "Polgar Challenge 2021"]
[Site "Online"]
[Date "2021.04.04"]
[Round "4.10"]
[White "Lei, Tingjie"]
[Black "Yip, Carissa"]
[Result "1-0"]
[ECO "E90"]
[WhiteElo "2505"]
[BlackElo "2430"]
[Annotator "ChessBase"]
[PlyCount "53"]
[EventDate "2021.04.08"]
[EventType "tourn"]
[EventCountry "NET"]
[SourceTitle "playchess.com"]
[Source "ChessBase"]
[SourceQuality "1"]
[TimeControl "600+5"]

1. d4 {[%emt 0:00:00]} Nf6 {[%emt 0:00:00]} 2. c4 {[%emt 0:00:00]} g6 {[%emt 0:00:00]} 3. Nc3 {[%emt 0:00:00]} Bg7 {[%emt 0:00:00]} 4. e4 {[%emt 0:00:01]} O-O {[%emt 0:00:00]} 5. Nf3 {[%emt 0:00:01]} d6 {[%emt 0:00:01]} 6. h3 {[%emt 0:00:01]} e5 {[%emt 0:00:10]} 7. d5 {[%emt 0:00:03]} a5 {[%emt 0:00:03]} 8. Be3 {[%emt 0:00:01]} Na6 {[%emt 0:00:02]} 9. g4 {[%emt 0:00:03]} Nd7 {[%emt 0:00:10]} 10. a3 {[%emt 0:00:03]} Nac5 {[%emt 0:00:09]} 11. Rg1 {[%emt 0:00:03]} a4 {[%emt 0:00:08]} 12. Nd2 {[%emt 0:00:02]} c6 {[%emt 0:00:10]} 13. Qc2 {[%emt 0:00:03]} Nb6 {[%emt 0:00:34]} 14. Be2 {[%emt 0:00:31]} Bd7 {[%emt 0:00:07]} 15. O-O-O {[%emt 0:00:43]} cxd5 {[%emt 0:00:12]} 16. exd5 {[%emt 0:00:56]} Rc8 {[%emt 0:00:25]} 17. h4 {[%emt 0:01:24]} Qxh4 {[%emt 0:02:47]} 18. Rh1 {[%emt 0:00:02]} Qe7 {[%emt 0:00:03]} 19. Rh2 {[%emt 0:00:03]} f5 {[%emt 0:01:05]} 20. Rdh1 {[%emt 0:00:07]} fxg4 {[%emt 0:00:24]} 21. Rxh7 {[%emt 0:00:26]} Bf5 {[%emt 0:00:03]} 22. Qd1 {[%emt 0:00:18]} g5 {[%emt 0:03:28]} 23. R7h5 {[%emt 0:01:00]} Nbd7 {[%emt 0:00:03]} 24. Rxg5 {[%emt 0:00:54]} Rf6 {[%emt 0:00:21]} 25. Qg1 {[%emt 0:01:10]} Rcf8 {[%emt 0:00:20]} 26. Qh2 {[%emt 0:01:32]} Kf7 {[%emt 0:01:25]} 27. Bxg4 {[%emt 0:00:23]} 1-0

[Event "Polgar Challenge 2021"]
[Site "Online"]
[Date "2021.04.04"]
[Round "5.1"]
[White "Yip, Carissa"]
[Black "Zhu, Jiner"]
[Result "0-1"]
[ECO "C56"]
[WhiteElo "2430"]
[BlackElo "2459"]
[Annotator "ChessBase"]
[PlyCount "38"]
[EventDate "2021.04.08"]
[EventType "tourn"]
[EventCountry "NET"]
[SourceTitle "playchess.com"]
[Source "ChessBase"]
[SourceQuality "1"]
[TimeControl "600+5"]

1. e4 {[%emt 0:00:00]} e5 {[%emt 0:00:00]} 2. Nf3 {[%emt 0:00:00]} Nc6 {[%emt 0:00:00]} 3. d4 {[%emt 0:00:00]} exd4 {[%emt 0:00:00]} 4. Bc4 {[%emt 0:00:01]} Nf6 {[%emt 0:00:18]} 5. e5 {[%emt 0:00:03]} Ne4 {[%emt 0:00:03]} 6. Qe2 {[%emt 0:00:25]} Nc5 {[%emt 0:00:04]} 7. O-O {[%emt 0:00:03]} Ne6 {[%emt 0:00:24]} 8. Rd1 {[%emt 0:00:14]} d5 {[%emt 0:00:08]} 9. exd6 {[%emt 0:00:19]} Bxd6 {[%emt 0:00:02]} 10. c3 {[%emt 0:00:41]} O-O {[%emt 0:00:12]} 11. cxd4 {[%emt 0:00:01]} Qf6 {[%emt 0:00:58]} 12. Bxe6 {[%emt 0:01:21]} fxe6 {[%emt 0:00:47]} 13. Nc3 {[%emt 0:00:03]} e5 {[%emt 0:01:27]} 14. Ne4 {[%emt 0:00:13]} Qg6 {[%emt 0:00:51]} 15. Nxd6 {[%emt 0:00:41]} cxd6 {[%emt 0:00:06]} 16. dxe5 {[%emt 0:00:25]} Bg4 {[%emt 0:00:58]} 17. Qc4+ {[%emt 0:00:36]} d5 {[%emt 0:00:43]} 18. Rxd5 {[%emt 0:01:21]} Be6 {[%emt 0:00:05]} 19. Ng5 {[%emt 0:02:34]} Rad8 {[%emt 0:00:15]} 0-1

[Event "Polgar Challenge 2021"]
[Site "Online"]
[Date "2021.04.04"]
[Round "5.3"]
[White "Salimova, Nurgyul"]
[Black "Badelka, Olga"]
[Result "1/2-1/2"]
[ECO "E04"]
[WhiteElo "2397"]
[BlackElo "2433"]
[Annotator "NA"]
[PlyCount "99"]
[EventDate "2021.04.08"]
[EventType "tourn"]
[EventCountry "NET"]
[SourceTitle "playchess.com"]
[Source "ChessBase"]
[SourceQuality "1"]
[TimeControl "600+5"]

1. d4 {[%emt 0:00:00]} Nf6 {[%emt 0:00:00]} 2. Nf3 {[%emt 0:00:02]} e6 {[%emt 0:00:02]} 3. g3 {[%emt 0:00:08]} d5 {[%emt 0:00:12]} 4. c4 {[%emt 0:00:06]} dxc4 {[%emt 0:00:07]} 5. Bg2 {[%emt 0:00:04]} c6 {[%emt 0:00:33]} 6. O-O {[%emt 0:00:19]} b5 {[%emt 0:00:09]} 7. Ne5 {[%emt 0:00:58]} Bb7 {[%emt 0:00:07]} 8. a4 {[%emt 0:00:55]} a6 {[%emt 0:00:05]} 9. b3 {[%emt 0:00:44]} cxb3 {[%emt 0:00:06]} 10. Qxb3 {[%emt 0:00:54]} Be7 {[%emt 0:00:22]} 11. Bb2 {[%emt 0:00:14]} O-O {[%emt 0:00:18]} 12. Rc1 {[%emt 0:00:15]} Nd5 {[%emt 0:00:14]} 13. Nd2 {[%emt 0:01:38]} f6 {[%emt 0:02:42]} 14. Nd3 {[%emt 0:00:08]} Nd7 {[%emt 0:00:06]} 15. e4 {[%emt 0:00:16]} Nc7 {[%emt 0:00:02]} 16. Nf4 {[%emt 0:00:44]} Kh8 {[%emt 0:00:21]} 17. Nxe6 {[%emt 0:00:11]} Nxe6 {[%emt 0:00:02]} 18. Qxe6 {[%emt 0:00:01]} c5 {[%emt 0:00:27]} 19. d5 {[%emt 0:00:34]} Ne5 {[%emt 0:00:28]} 20. Bxe5 {[%emt 0:00:41]} fxe5 {[%emt 0:00:07]} 21. axb5 {[%emt 0:00:17]} Bc8 {[%emt 0:02:00]} 22. Qc6 {[%emt 0:00:04]} Bd7 {[%emt 0:00:18]} 23. Qb7 {[%emt 0:00:06]} Bxb5 {[%emt 0:00:02]} 24. Bf1 {[%emt 0:01:23]} Bg5 {[%emt 0:01:28]} 25. Rc2 {[%emt 0:00:25]} Qf6 {[%emt 0:00:33]} 26. Nc4 {[%emt 0:00:27]} Rab8 {[%emt 0:00:31]} 27. Qc7 {[%emt 0:00:08]} Rfc8 {[%emt 0:00:18]} 28. Qd6 {[%emt 0:00:25]} h5 {[%emt 0:00:32]} 29. Qxf6 {[%emt 0:00:03]} Bxf6 {[%emt 0:00:02]} 30. Nd6 {[%emt 0:00:08]} Rc7 {[%emt 0:00:01]} 31. Rac1 {[%emt 0:00:05]} Be7 {[%emt 0:00:05]} 32. Nf5 {[%emt 0:00:03]} Bf8 {[%emt 0:00:02]} 33. d6 {[%emt 0:00:02]} Rd7 {[%emt 0:00:03]} 34. Rxc5 {[%emt 0:00:05]} g6 {[%emt 0:00:01]} 35. Rc8 {[%emt 0:00:11]} Rxc8 {[%emt 0:00:16]} 36. Rxc8 {[%emt 0:00:02]} Kg8 {[%emt 0:00:05]} 37. Ne7+ {[%emt 0:00:07]} Kf7 {[%emt 0:00:02]} 38. Nd5 {[%emt 0:00:04]} Bxd6 {[%emt 0:00:03]} 39. Bh3 {[%emt 0:00:06]} Rb7 {[%emt 0:00:06]} 40. Rd8 {[%emt 0:00:06]} Bc5 {[%emt 0:00:03]} 41. Rh8 {[%emt 0:00:05]} Kg7 {[%emt 0:00:04]} 42. Rc8 {[%emt 0:00:00]} Bd4 {[%emt 0:00:03]} 43. Be6 {[%emt 0:00:09]} Bd3 {[%emt 0:00:19]} 44. h4 {[%emt 0:00:07]} Rb1+ {[%emt 0:00:08]} 45. Kh2 {[%emt 0:00:02]} Bxf2 {[%emt 0:00:03]} 46. Rg8+ {[%emt 0:00:05]} Kh6 {[%emt 0:00:03]} 47. Rh8+ {[%emt 0:00:07]} Kg7 {[%emt 0:00:03]} 48. Rg8+ {[%emt 0:00:01]} Kh6 {[%emt 0:00:01]} 49. Rh8+ {[%emt 0:00:07]} Kg7 {[%emt 0:00:01]} 50. Rg8+ {[%emt 0:00:01]} 1/2-1/2

[Event "Polgar Challenge 2021"]
[Site "Online"]
[Date "2021.04.04"]
[Round "5.5"]
[White "Liang, Awonder"]
[Black "Mammadzada, Gunay"]
[Result "1-0"]
[ECO "A07"]
[WhiteElo "2592"]
[BlackElo "2443"]
[Annotator "ChessBase"]
[PlyCount "73"]
[EventDate "2021.04.08"]
[EventType "tourn"]
[EventCountry "NET"]
[SourceTitle "playchess.com"]
[Source "ChessBase"]
[SourceQuality "1"]
[TimeControl "600+5"]

1. Nf3 {[%emt 0:00:00]} d5 {[%emt 0:00:00]} 2. g3 {[%emt 0:00:00]} c6 {[%emt 0:00:00]} 3. Bg2 {[%emt 0:00:00]} Bg4 {[%emt 0:00:00]} 4. O-O {[%emt 0:00:00]} Nd7 {[%emt 0:00:01]} 5. c4 {[%emt 0:00:04]} Bxf3 {[%emt 0:00:33]} 6. Bxf3 {[%emt 0:00:02]} Ne5 {[%emt 0:00:01]} 7. Bg2 {[%emt 0:00:39]} Nxc4 {[%emt 0:00:24]} 8. d3 {[%emt 0:00:04]} Nd6 {[%emt 0:00:11]} 9. e4 {[%emt 0:00:02]} e6 {[%emt 0:00:51]} 10. Nc3 {[%emt 0:00:12]} Ne7 {[%emt 0:00:37]} 11. h4 {[%emt 0:00:24]} Qd7 {[%emt 0:03:00]} 12. Be3 {[%emt 0:00:27]} dxe4 {[%emt 0:00:19]} 13. dxe4 {[%emt 0:00:05]} Nc4 {[%emt 0:00:13]} 14. Qe2 {[%emt 0:00:07]} Nxe3 {[%emt 0:00:08]} 15. Qxe3 {[%emt 0:00:00]} Nc8 {[%emt 0:00:15]} 16. Rad1 {[%emt 0:00:06]} Qc7 {[%emt 0:00:03]} 17. Qg5 {[%emt 0:00:42]} h6 {[%emt 0:00:22]} 18. Qg4 {[%emt 0:00:01]} Nb6 {[%emt 0:00:32]} 19. e5 {[%emt 0:01:06]} h5 {[%emt 0:02:30]} 20. Qg5 {[%emt 0:00:09]} Nd7 {[%emt 0:00:02]} 21. Rfe1 {[%emt 0:00:25]} g6 {[%emt 0:00:34]} 22. Qc1 {[%emt 0:02:44]} O-O-O {[%emt 0:00:20]} 23. Qf4 {[%emt 0:00:12]} Bg7 {[%emt 0:00:31]} 24. Qxf7 {[%emt 0:00:08]} Nxe5 {[%emt 0:00:01]} 25. Qxe6+ {[%emt 0:00:08]} Kb8 {[%emt 0:00:01]} 26. Ne4 {[%emt 0:00:10]} Nd3 {[%emt 0:00:06]} 27. Re3 {[%emt 0:00:15]} Nxb2 {[%emt 0:00:18]} 28. Rb1 {[%emt 0:00:32]} Rd1+ {[%emt 0:00:11]} 29. Rxd1 {[%emt 0:00:03]} Nxd1 {[%emt 0:00:00]} 30. Rb3 {[%emt 0:00:01]} Ka8 {[%emt 0:00:17]} 31. Nd6 {[%emt 0:00:14]} Rb8 {[%emt 0:00:09]} 32. Rxb7 {[%emt 0:00:11]} Rxb7 {[%emt 0:00:01]} 33. Qe8+ {[%emt 0:00:01]} Qb8 {[%emt 0:00:02]} 34. Qxc6 {[%emt 0:00:02]} a5 {[%emt 0:00:04]} 35. Nc8 {[%emt 0:00:36]} Bd4 {[%emt 0:00:06]} 36. Qa6+ {[%emt 0:00:01]} Ba7 {[%emt 0:00:01]} 37. Nb6# {[%emt 0:00:01]} 1-0

[Event "Polgar Challenge 2021"]
[Site "Online"]
[Date "2021.04.04"]
[Round "5.6"]
[White "Yoo, Christopher Woojin"]
[Black "Murzin, Volodar"]
[Result "1-0"]
[ECO "E90"]
[WhiteElo "2455"]
[BlackElo "2478"]
[Annotator "ChessBase"]
[PlyCount "83"]
[EventDate "2021.04.08"]
[EventType "tourn"]
[EventCountry "NET"]
[SourceTitle "playchess.com"]
[Source "ChessBase"]
[SourceQuality "1"]
[TimeControl "600+5"]

1. d4 {[%emt 0:00:00]} Nf6 {[%emt 0:00:00]} 2. Nf3 {[%emt 0:00:00]} g6 {[%emt 0:00:00]} 3. c4 {[%emt 0:00:00]} Bg7 {[%emt 0:00:00]} 4. Nc3 {[%emt 0:00:00]} O-O {[%emt 0:00:02]} 5. Bg5 {[%emt 0:00:02]} d6 {[%emt 0:00:58]} 6. Qd2 {[%emt 0:00:03]} Nbd7 {[%emt 0:01:52]} 7. e4 {[%emt 0:00:04]} e5 {[%emt 0:00:05]} 8. Bd3 {[%emt 0:00:03]} Re8 {[%emt 0:00:12]} 9. O-O {[%emt 0:00:06]} Nf8 {[%emt 0:00:50]} 10. d5 {[%emt 0:01:27]} h5 {[%emt 0:00:06]} 11. h3 {[%emt 0:00:20]} a5 {[%emt 0:00:19]} 12. a3 {[%emt 0:01:16]} a4 {[%emt 0:01:37]} 13. Bc2 {[%emt 0:01:00]} Bd7 {[%emt 0:00:04]} 14. Qd1 {[%emt 0:00:02]} N8h7 {[%emt 0:00:21]} 15. Bxf6 {[%emt 0:00:26]} Nxf6 {[%emt 0:00:23]} 16. Re1 {[%emt 0:00:05]} Bh6 {[%emt 0:01:01]} 17. Bxa4 {[%emt 0:00:31]} Bxa4 {[%emt 0:00:10]} 18. Nxa4 {[%emt 0:00:00]} Kh8 {[%emt 0:00:09]} 19. Nc3 {[%emt 0:01:21]} Rg8 {[%emt 0:00:08]} 20. Nh2 {[%emt 0:00:40]} Qd7 {[%emt 0:00:17]} 21. Qd3 {[%emt 0:00:08]} Qe7 {[%emt 0:00:51]} 22. b4 {[%emt 0:00:17]} Nd7 {[%emt 0:00:50]} 23. a4 {[%emt 0:00:22]} Nb8 {[%emt 0:00:25]} 24. a5 {[%emt 0:01:04]} Na6 {[%emt 0:00:04]} 25. Rab1 {[%emt 0:00:01]} Qd7 {[%emt 0:00:12]} 26. Nf3 {[%emt 0:00:17]} Raf8 {[%emt 0:00:10]} 27. c5 {[%emt 0:00:12]} Nb8 {[%emt 0:00:42]} 28. cxd6 {[%emt 0:00:19]} cxd6 {[%emt 0:00:03]} 29. b5 {[%emt 0:00:01]} Qe7 {[%emt 0:00:20]} 30. a6 {[%emt 0:00:27]} Nd7 {[%emt 0:00:01]} 31. axb7 {[%emt 0:00:28]} Nc5 {[%emt 0:00:02]} 32. Qc4 {[%emt 0:00:01]} f5 {[%emt 0:00:06]} 33. b6 {[%emt 0:00:17]} Rb8 {[%emt 0:00:14]} 34. Qb5 {[%emt 0:00:25]} Rxb7 {[%emt 0:00:05]} 35. Qc6 {[%emt 0:00:04]} f4 {[%emt 0:00:09]} 36. Nb5 {[%emt 0:00:16]} Rd8 {[%emt 0:00:04]} 37. Nd2 {[%emt 0:00:07]} g5 {[%emt 0:00:03]} 38. Nc4 {[%emt 0:00:06]} Bf8 {[%emt 0:00:02]} 39. Nbxd6 {[%emt 0:00:12]} Rxd6 {[%emt 0:00:09]} 40. Qxc5 {[%emt 0:00:01]} Rd8 {[%emt 0:00:09]} 41. Qxe7 {[%emt 0:00:05]} Bxe7 {[%emt 0:00:02]} 42. Nxe5 {[%emt 0:00:06]} 1-0

[Event "Polgar Challenge 2021"]
[Site "Online"]
[Date "2021.04.04"]
[Round "5.8"]
[White "Bjerre, Jonas Buhl"]
[Black "Khademalsharieh, Sarasadat"]
[Result "1/2-1/2"]
[ECO "E15"]
[WhiteElo "2550"]
[BlackElo "2494"]
[Annotator "ChessBase"]
[PlyCount "45"]
[EventDate "2021.04.08"]
[EventType "tourn"]
[EventCountry "NET"]
[SourceTitle "playchess.com"]
[Source "ChessBase"]
[SourceQuality "1"]
[TimeControl "600+5"]

1. d4 {[%emt 0:00:00]} Nf6 {[%emt 0:00:00]} 2. c4 {[%emt 0:00:00]} e6 {[%emt 0:00:00]} 3. Nf3 {[%emt 0:00:00]} b6 {[%emt 0:00:03]} 4. g3 {[%emt 0:00:00]} Bb4+ {[%emt 0:00:02]} 5. Bd2 {[%emt 0:00:04]} Bxd2+ {[%emt 0:00:03]} 6. Qxd2 {[%emt 0:00:02]} Ba6 {[%emt 0:00:02]} 7. b3 {[%emt 0:00:02]} d5 {[%emt 0:00:07]} 8. cxd5 {[%emt 0:00:24]} exd5 {[%emt 0:00:16]} 9. Nc3 {[%emt 0:00:34]} O-O {[%emt 0:00:09]} 10. Bg2 {[%emt 0:00:01]} Nbd7 {[%emt 0:00:08]} 11. O-O {[%emt 0:00:17]} Re8 {[%emt 0:00:08]} 12. Rfd1 {[%emt 0:00:51]} Ne4 {[%emt 0:01:00]} 13. Nxe4 {[%emt 0:00:26]} dxe4 {[%emt 0:00:01]} 14. Ne1 {[%emt 0:00:45]} Bb7 {[%emt 0:01:11]} 15. Nc2 {[%emt 0:00:25]} c5 {[%emt 0:01:40]} 16. Ne3 {[%emt 0:01:00]} Qf6 {[%emt 0:00:58]} 17. Bh3 {[%emt 0:01:48]} Rad8 {[%emt 0:00:16]} 18. dxc5 {[%emt 0:00:38]} Nxc5 {[%emt 0:00:02]} 19. Qc2 {[%emt 0:00:03]} Bc8 {[%emt 0:00:57]} 20. Bg2 {[%emt 0:00:13]} Bb7 {[%emt 0:00:19]} 21. Bh3 {[%emt 0:01:26]} Bc8 {[%emt 0:00:08]} 22. Bg2 {[%emt 0:01:17]} Bb7 {[%emt 0:00:02]} 23. Bh3 {[%emt 0:00:34]} 1/2-1/2